[Event "Titled Tuesday Blitz June 6 Early 2023"]
[White "Vifleemskaia, Svetlana"]
[Black "Jeet, Jain"]
[WhiteFideId "4129490"]
[BlackFideId "5073022"]
[WhiteElo "1930"]
[BlackElo "2067"]
[Result "0-1"]
[Round "2"]
[TimeControl "180+2"]
[Date "2023.06.06"]
[WhiteClock "0:00:02"]
[BlackClock "0:00:19"]
[Board "83"]

1. d4 {[%clk 0:02:29]}  c6 {[%clk 0:02:54]} 2. c4 {[%clk 0:02:24]}  d5 {[%clk 0:02:47]} 3. cxd5 {[%clk 0:02:25]}  cxd5 {[%clk 0:02:46]} 4. Bf4 {[%clk 0:02:22]}  Nc6 {[%clk 0:02:44]} 5. Nc3 {[%clk 0:02:23]}  Nf6 {[%clk 0:02:42]} 6. e3 {[%clk 0:02:21]}  a6 {[%clk 0:02:43]} 7. Bd3 {[%clk 0:02:17]}  e6 {[%clk 0:02:38]} 8. Rc1 {[%clk 0:02:05]}  Be7 {[%clk 0:02:38]} 9. Nf3 {[%clk 0:02:04]}  O-O {[%clk 0:02:38]} 10. h3 {[%clk 0:02:04]}  Bd7 {[%clk 0:02:36]} 11. O-O {[%clk 0:02:04]}  b5 {[%clk 0:02:36]} 12. Ne5 {[%clk 0:02:02]}  Na5 {[%clk 0:02:32]} 13. b3 {[%clk 0:01:58]}  Rc8 {[%clk 0:02:30]} 14. Ne2 {[%clk 0:01:43]}  Ba3 {[%clk 0:02:15]} 15. Rxc8 {[%clk 0:01:41]}  Qxc8 {[%clk 0:02:16]} 16. Qc2 {[%clk 0:01:41]}  Qb7 {[%clk 0:02:10]} 17. Qd2 {[%clk 0:01:31]}  Nc6 {[%clk 0:02:06]} 18. Nc3 {[%clk 0:01:24]}  Rc8 {[%clk 0:02:00]} 19. Nb1 {[%clk 0:01:21]}  Bb4 {[%clk 0:01:55]} 20. Qe2 {[%clk 0:01:14]}  Ne7 {[%clk 0:01:45]} 21. a3 {[%clk 0:01:12]}  Ba5 {[%clk 0:01:41]} 22. b4 {[%clk 0:01:08]}  Bb6 {[%clk 0:01:40]} 23. Qb2 {[%clk 0:01:05]}  Ng6 {[%clk 0:01:30]} 24. Nxg6 {[%clk 0:00:54]}  hxg6 {[%clk 0:01:29]} 25. Rc1 {[%clk 0:00:55]}  Ra8 {[%clk 0:01:19]} 26. Nc3 {[%clk 0:00:46]}  Bd8 {[%clk 0:01:14]} 27. Bd6 {[%clk 0:00:42]}  Ne8 {[%clk 0:01:11]} 28. Bc5 {[%clk 0:00:39]}  Bc7 {[%clk 0:01:09]} 29. g3 {[%clk 0:00:19]}  Nd6 {[%clk 0:01:02]} 30. Bxd6 {[%clk 0:00:18]}  Bxd6 {[%clk 0:01:03]} 31. Kg2 {[%clk 0:00:19]}  g5 {[%clk 0:01:01]} 32. g4 {[%clk 0:00:17]}  g6 {[%clk 0:01:01]} 33. Ne2 {[%clk 0:00:17]}  Kg7 {[%clk 0:01:01]} 34. Ng3 {[%clk 0:00:17]}  a5 {[%clk 0:00:58]} 35. bxa5 {[%clk 0:00:15]}  Rxa5 {[%clk 0:00:58]} 36. Rb1 {[%clk 0:00:15]}  Bxa3 {[%clk 0:00:57]} 37. Qd2 {[%clk 0:00:16]}  b4 {[%clk 0:00:55]} 38. Qc2 {[%clk 0:00:15]}  Ba4 {[%clk 0:00:51]} 39. Qe2 {[%clk 0:00:13]}  b3 {[%clk 0:00:49]} 40. f4 {[%clk 0:00:11]}  b2 {[%clk 0:00:40]} 41. fxg5 {[%clk 0:00:09]}  Ra8 {[%clk 0:00:30]} 42. Qf3 {[%clk 0:00:08]}  Qe7 {[%clk 0:00:28]} 43. e4 {[%clk 0:00:07]}  dxe4 {[%clk 0:00:26]} 44. Nxe4 {[%clk 0:00:07]}  Rc8 {[%clk 0:00:25]} 45. Qg3 {[%clk 0:00:01]}  Qc7 {[%clk 0:00:20]} 46. Qh4 {[%clk 0:00:01]}  Rh8 {[%clk 0:00:19]} 47. Qg3 {[%clk 0:00:02]}  Qxg3+ {[%clk 0:00:18]} 48. Kxg3 {[%clk 0:00:03]}  Bb3 {[%clk 0:00:18]} 49. Nd2 {[%clk 0:00:02]}  Ba2 {[%clk 0:00:19]} 50. Nf3 {[%clk 0:00:01]}  Bxb1 {[%clk 0:00:19]} 51. Bxb1 {[%clk 0:00:02]}  Rc8 {[%clk 0:00:19]} 0-1


[Site "https://www.chess.com"]

[Event "Titled Tuesday Blitz June 6 Early 2023"]
[White "Fiorito, Joaquin"]
[Black "Spichkin, Alexander"]
[WhiteFideId "180173"]
[BlackFideId "4144074"]
[WhiteElo "2199"]
[BlackElo "1986"]
[Result "0-1"]
[Round "2"]
[TimeControl "180+2"]
[Date "2023.06.06"]
[WhiteClock "0:00:14"]
[BlackClock "0:00:57"]
[Board "84"]

1. d4 {[%clk 0:03:00]}  e6 {[%clk 0:02:59]} 2. c4 {[%clk 0:03:01]}  f5 {[%clk 0:03:00]} 3. Nc3 {[%clk 0:03:00]}  Nf6 {[%clk 0:03:00]} 4. Nf3 {[%clk 0:02:59]}  Be7 {[%clk 0:03:00]} 5. Bf4 {[%clk 0:02:58]}  O-O {[%clk 0:03:01]} 6. e3 {[%clk 0:02:59]}  d6 {[%clk 0:03:00]} 7. h3 {[%clk 0:03:00]}  Qe8 {[%clk 0:02:59]} 8. Be2 {[%clk 0:02:56]}  Nbd7 {[%clk 0:02:58]} 9. Qc2 {[%clk 0:02:44]}  c5 {[%clk 0:02:41]} 10. dxc5 {[%clk 0:02:39]}  Nxc5 {[%clk 0:02:41]} 11. O-O-O {[%clk 0:02:29]}  Nfe4 {[%clk 0:02:35]} 12. Nxe4 {[%clk 0:02:17]}  Nxe4 {[%clk 0:02:34]} 13. Bd3 {[%clk 0:02:14]}  e5 {[%clk 0:02:28]} 14. Bh2 {[%clk 0:02:11]}  Qc6 {[%clk 0:02:15]} 15. g4 {[%clk 0:01:43]}  Nc5 {[%clk 0:02:07]} 16. Be2 {[%clk 0:01:41]}  fxg4 {[%clk 0:01:59]} 17. hxg4 {[%clk 0:01:40]}  Rxf3 {[%clk 0:01:59]} 18. Bxe5 {[%clk 0:01:32]}  dxe5 {[%clk 0:01:43]} 19. Qxh7+ {[%clk 0:01:31]}  Kf7 {[%clk 0:01:43]} 20. g5 {[%clk 0:01:13]}  Bf5 {[%clk 0:01:38]} 21. Qh5+ {[%clk 0:01:00]}  g6 {[%clk 0:01:33]} 22. Qxf3 {[%clk 0:00:53]}  Qxf3 {[%clk 0:01:33]} 23. Bxf3 {[%clk 0:00:54]}  e4 {[%clk 0:01:30]} 24. Be2 {[%clk 0:00:53]}  Nd3+ {[%clk 0:01:31]} 25. Bxd3 {[%clk 0:00:53]}  exd3 {[%clk 0:01:31]} 26. f3 {[%clk 0:00:53]}  Bxg5 {[%clk 0:01:28]} 27. Kd2 {[%clk 0:00:53]}  Re8 {[%clk 0:01:27]} 28. Rhe1 {[%clk 0:00:53]}  Kf6 {[%clk 0:01:26]} 29. Rc1 {[%clk 0:00:44]}  b6 {[%clk 0:01:24]} 30. c5 {[%clk 0:00:42]}  bxc5 {[%clk 0:01:24]} 31. Rxc5 {[%clk 0:00:43]}  Rb8 {[%clk 0:01:21]} 32. b3 {[%clk 0:00:42]}  Rh8 {[%clk 0:01:18]} 33. f4 {[%clk 0:00:33]}  Rh2+ {[%clk 0:01:17]} 34. Kc3 {[%clk 0:00:24]}  Bh4 {[%clk 0:01:12]} 35. Rc1 {[%clk 0:00:17]}  Rxa2 {[%clk 0:01:04]} 36. Re5 {[%clk 0:00:15]}  d2 {[%clk 0:00:58]} 37. Rd1 {[%clk 0:00:15]}  Be1 {[%clk 0:00:59]} 38. e4 {[%clk 0:00:15]}  Bg4 {[%clk 0:00:58]} 39. Rb1 {[%clk 0:00:14]}  d1=Q+ {[%clk 0:00:57]} 0-1


[Site "https://www.chess.com"]

[Event "Titled Tuesday Blitz June 6 Early 2023"]
[White "Melikyan, Gnel"]
[Black "Rosh Jain"]
[WhiteFideId "54109990"]
[BlackFideId "25789465"]
[WhiteElo "2138"]
[BlackElo "2233"]
[Result "1-0"]
[Round "2"]
[TimeControl "180+2"]
[Date "2023.06.06"]
[WhiteClock "0:00:35"]
[BlackClock "0:00:03"]
[Board "88"]

1. d4 {[%clk 0:03:00]}  Nf6 {[%clk 0:02:54]} 2. Bf4 {[%clk 0:03:00]}  d5 {[%clk 0:02:54]} 3. e3 {[%clk 0:03:00]}  e6 {[%clk 0:02:54]} 4. c4 {[%clk 0:03:01]}  Bd6 {[%clk 0:02:53]} 5. Bxd6 {[%clk 0:03:00]}  Qxd6 {[%clk 0:02:53]} 6. Nc3 {[%clk 0:03:01]}  Nbd7 {[%clk 0:02:51]} 7. Nf3 {[%clk 0:02:58]}  c6 {[%clk 0:02:50]} 8. Be2 {[%clk 0:02:58]}  e5 {[%clk 0:02:50]} 9. cxd5 {[%clk 0:02:54]}  cxd5 {[%clk 0:02:48]} 10. dxe5 {[%clk 0:02:54]}  Nxe5 {[%clk 0:02:48]} 11. O-O {[%clk 0:02:53]}  a6 {[%clk 0:02:48]} 12. Qd2 {[%clk 0:02:49]}  O-O {[%clk 0:02:47]} 13. Rfd1 {[%clk 0:02:48]}  Be6 {[%clk 0:02:45]} 14. Rac1 {[%clk 0:02:40]}  Rfd8 {[%clk 0:02:43]} 15. Nxe5 {[%clk 0:02:24]}  Qxe5 {[%clk 0:02:42]} 16. Bf3 {[%clk 0:02:22]}  Bg4 {[%clk 0:02:29]} 17. Qd4 {[%clk 0:02:19]}  Qxd4 {[%clk 0:02:17]} 18. Rxd4 {[%clk 0:02:20]}  Bxf3 {[%clk 0:02:17]} 19. gxf3 {[%clk 0:02:21]}  Rd7 {[%clk 0:02:15]} 20. Na4 {[%clk 0:02:14]}  Rad8 {[%clk 0:01:59]} 21. b4 {[%clk 0:02:10]}  Kf8 {[%clk 0:01:54]} 22. Kf1 {[%clk 0:02:03]}  Ke7 {[%clk 0:01:54]} 23. Ke2 {[%clk 0:02:03]}  Kd6 {[%clk 0:01:50]} 24. Kd2 {[%clk 0:01:41]}  Rc7 {[%clk 0:01:44]} 25. Nc5 {[%clk 0:01:36]}  Ra8 {[%clk 0:01:22]} 26. a4 {[%clk 0:01:19]}  b6 {[%clk 0:01:10]} 27. Ne4+ {[%clk 0:00:58]}  Nxe4+ {[%clk 0:01:09]} 28. fxe4 {[%clk 0:00:58]}  Rxc1 {[%clk 0:01:08]} 29. Kxc1 {[%clk 0:00:59]}  Ke5 {[%clk 0:00:24]} 30. f4+ {[%clk 0:00:56]}  Kd6 {[%clk 0:00:23]} 31. Rxd5+ {[%clk 0:00:55]}  Ke6 {[%clk 0:00:23]} 32. Kd2 {[%clk 0:00:51]}  Rc8 {[%clk 0:00:22]} 33. Rd4 {[%clk 0:00:51]}  Rc6 {[%clk 0:00:21]} 34. e5 {[%clk 0:00:44]}  Rc7 {[%clk 0:00:17]} 35. Rd6+ {[%clk 0:00:43]}  Ke7 {[%clk 0:00:17]} 36. Rxb6 {[%clk 0:00:44]}  a5 {[%clk 0:00:17]} 37. bxa5 {[%clk 0:00:42]}  Rc5 {[%clk 0:00:16]} 38. Rb5 {[%clk 0:00:42]}  Rc4 {[%clk 0:00:16]} 39. f5 {[%clk 0:00:38]}  Rxa4 {[%clk 0:00:15]} 40. Kd3 {[%clk 0:00:36]}  Ra3+ {[%clk 0:00:13]} 41. Kd4 {[%clk 0:00:36]}  Ra2 {[%clk 0:00:11]} 42. e4 {[%clk 0:00:35]}  Rxh2 {[%clk 0:00:10]} 43. Rb7+ {[%clk 0:00:36]}  Ke8 {[%clk 0:00:10]} 44. a6 {[%clk 0:00:36]}  Rd2+ {[%clk 0:00:08]} 45. Kc5 {[%clk 0:00:34]}  Rc2+ {[%clk 0:00:08]} 46. Kd6 {[%clk 0:00:34]}  Rd2+ {[%clk 0:00:08]} 47. Kc7 {[%clk 0:00:34]}  Ra2 {[%clk 0:00:04]} 48. a7 {[%clk 0:00:34]}  Rc2+ {[%clk 0:00:04]} 49. Kb8 {[%clk 0:00:34]}  Rd2 {[%clk 0:00:01]} 50. a8=Q {[%clk 0:00:34]}  Rd8+ {[%clk 0:00:01]} 51. Ka7 {[%clk 0:00:35]}  Rxa8+ {[%clk 0:00:01]} 52. Kxa8 {[%clk 0:00:36]}  h5 {[%clk 0:00:01]} 53. Kb8 {[%clk 0:00:34]}  g6 {[%clk 0:00:01]} 54. Kc7 {[%clk 0:00:34]}  g5 {[%clk 0:00:01]} 55. Kd6 {[%clk 0:00:35]}  Kf8 {[%clk 0:00:01]} 56. f6 {[%clk 0:00:34]}  Kg8 {[%clk 0:00:02]} 57. e6 {[%clk 0:00:34]}  fxe6 {[%clk 0:00:02]} 58. Ke7 {[%clk 0:00:34]}  h4 {[%clk 0:00:02]} 59. f7+ {[%clk 0:00:35]}  Kh7 {[%clk 0:00:02]} 60. Kf6 {[%clk 0:00:35]}  h3 {[%clk 0:00:03]} 61. f8=Q# {[%clk 0:00:35]} 1-0


[Site "https://www.chess.com"]

[Event "Titled Tuesday Blitz June 6 Early 2023"]
[White "Chemin, Justo Reinaldo"]
[Black "Principe, Gerson"]
[WhiteFideId "2101580"]
[BlackFideId "3804550"]
[WhiteElo "1940"]
[BlackElo "2229"]
[Result "1/2-1/2"]
[Round "2"]
[TimeControl "180+2"]
[Date "2023.06.06"]
[WhiteClock "0:00:08"]
[BlackClock "0:00:04"]
[Board "93"]

1. d4 {[%clk 0:02:58]}  Nf6 {[%clk 0:02:59]} 2. Nf3 {[%clk 0:02:56]}  e6 {[%clk 0:02:59]} 3. e3 {[%clk 0:02:56]}  b6 {[%clk 0:02:55]} 4. b3 {[%clk 0:02:57]}  Bb7 {[%clk 0:02:56]} 5. Bb2 {[%clk 0:02:57]}  Be7 {[%clk 0:02:56]} 6. c4 {[%clk 0:02:57]}  O-O {[%clk 0:02:56]} 7. Nc3 {[%clk 0:02:57]}  d5 {[%clk 0:02:56]} 8. Bd3 {[%clk 0:02:54]}  Nbd7 {[%clk 0:02:56]} 9. Qc2 {[%clk 0:02:54]}  c5 {[%clk 0:02:54]} 10. cxd5 {[%clk 0:02:43]}  exd5 {[%clk 0:02:41]} 11. Ne5 {[%clk 0:02:40]}  Bd6 {[%clk 0:02:01]} 12. f4 {[%clk 0:02:26]}  a6 {[%clk 0:01:53]} 13. g4 {[%clk 0:02:15]}  cxd4 {[%clk 0:01:26]} 14. exd4 {[%clk 0:02:12]}  Ne4 {[%clk 0:01:24]} 15. Nxe4 {[%clk 0:01:46]}  dxe4 {[%clk 0:01:20]} 16. Bxe4 {[%clk 0:01:40]}  Qh4+ {[%clk 0:01:19]} 17. Kf1 {[%clk 0:01:20]}  Bxe4 {[%clk 0:01:02]} 18. Qxe4 {[%clk 0:01:19]}  Nf6 {[%clk 0:01:02]} 19. Qf3 {[%clk 0:01:08]}  Bxe5 {[%clk 0:00:46]} 20. fxe5 {[%clk 0:01:06]}  Nxg4 {[%clk 0:00:44]} 21. Qg3 {[%clk 0:01:00]}  Qh5 {[%clk 0:00:41]} 22. Rg1 {[%clk 0:00:49]}  Qf5+ {[%clk 0:00:29]} 23. Kg2 {[%clk 0:00:42]}  g6 {[%clk 0:00:24]} 24. Raf1 {[%clk 0:00:39]}  Qe4+ {[%clk 0:00:24]} 25. Qf3 {[%clk 0:00:34]}  Ne3+ {[%clk 0:00:19]} 26. Kh3 {[%clk 0:00:24]}  Qxf3+ {[%clk 0:00:16]} 27. Rxf3 {[%clk 0:00:23]}  Nd5 {[%clk 0:00:16]} 28. Rgf1 {[%clk 0:00:22]}  Rac8 {[%clk 0:00:15]} 29. R1f2 {[%clk 0:00:20]}  Rc6 {[%clk 0:00:15]} 30. Kg4 {[%clk 0:00:17]}  f5+ {[%clk 0:00:14]} 31. exf6 {[%clk 0:00:16]}  Rcxf6 {[%clk 0:00:14]} 32. Rxf6 {[%clk 0:00:15]}  Rxf6 {[%clk 0:00:15]} 33. Rxf6 {[%clk 0:00:14]}  Nxf6+ {[%clk 0:00:16]} 34. Kf4 {[%clk 0:00:15]}  Kf7 {[%clk 0:00:15]} 35. Ke5 {[%clk 0:00:14]}  Ng4+ {[%clk 0:00:15]} 36. Kd6 {[%clk 0:00:14]}  Nxh2 {[%clk 0:00:16]} 37. Kc7 {[%clk 0:00:13]}  Nf3 {[%clk 0:00:09]} 38. d5 {[%clk 0:00:13]}  Ng5 {[%clk 0:00:10]} 39. d6 {[%clk 0:00:12]}  Ne6+ {[%clk 0:00:10]} 40. Kxb6 {[%clk 0:00:11]}  Nf8 {[%clk 0:00:07]} 41. Kc7 {[%clk 0:00:10]}  Ke6 {[%clk 0:00:07]} 42. Ba3 {[%clk 0:00:07]}  g5 {[%clk 0:00:06]} 43. Bc1 {[%clk 0:00:02]}  g4 {[%clk 0:00:06]} 44. Bf4 {[%clk 0:00:02]}  h5 {[%clk 0:00:07]} 45. b4 {[%clk 0:00:02]}  h4 {[%clk 0:00:06]} 46. a4 {[%clk 0:00:03]}  g3 {[%clk 0:00:06]} 47. b5 {[%clk 0:00:04]}  axb5 {[%clk 0:00:07]} 48. a5 {[%clk 0:00:04]}  Nd7 {[%clk 0:00:08]} 49. a6 {[%clk 0:00:04]}  g2 {[%clk 0:00:07]} 50. Bh2 {[%clk 0:00:02]}  Nc5 {[%clk 0:00:03]} 51. a7 {[%clk 0:00:03]}  Na6+ {[%clk 0:00:03]} 52. Kb6 {[%clk 0:00:02]}  Nc7 {[%clk 0:00:01]} 53. a8=Q {[%clk 0:00:03]}  Nxa8+ {[%clk 0:00:01]} 54. Kxb5 {[%clk 0:00:03]}  Kd7 {[%clk 0:00:01]} 55. Kc4 {[%clk 0:00:04]}  Nb6+ {[%clk 0:00:01]} 56. Kd3 {[%clk 0:00:05]}  Nc8 {[%clk 0:00:01]} 57. Ke2 {[%clk 0:00:06]}  Nxd6 {[%clk 0:00:02]} 58. Kf2 {[%clk 0:00:07]}  Ke6 {[%clk 0:00:02]} 59. Kxg2 {[%clk 0:00:08]}  Nf5 {[%clk 0:00:03]} 60. Kh3 {[%clk 0:00:08]}  Kf6 {[%clk 0:00:04]} 61. Kg4 {[%clk 0:00:08]}  Nh6+ {[%clk 0:00:04]} 62. Kxh4 {[%clk 0:00:08]} 1/2-1/2


[Site "https://www.chess.com"]

[Event "Titled Tuesday Blitz June 6 Early 2023"]
[White "Zhigalko, Sergei"]
[Black "feuervogel1000000"]
[WhiteFideId "13502956"]
[WhiteElo "2626"]
[BlackElo "2503"]
[Result "1/2-1/2"]
[Round "2"]
[TimeControl "180+2"]
[Date "2023.06.06"]
[WhiteClock "0:00:04"]
[BlackClock "0:01:03"]
[Board "96"]

1. e4 {[%clk 0:03:00]}  e5 {[%clk 0:02:58]} 2. Nf3 {[%clk 0:03:01]}  Nc6 {[%clk 0:02:57]} 3. Bc4 {[%clk 0:03:01]}  Nf6 {[%clk 0:02:57]} 4. d3 {[%clk 0:03:01]}  Bc5 {[%clk 0:02:57]} 5. O-O {[%clk 0:03:02]}  O-O {[%clk 0:02:57]} 6. Nbd2 {[%clk 0:03:02]}  d6 {[%clk 0:02:56]} 7. c3 {[%clk 0:03:03]}  a5 {[%clk 0:02:56]} 8. h3 {[%clk 0:03:02]}  h6 {[%clk 0:02:56]} 9. Re1 {[%clk 0:03:03]}  Be6 {[%clk 0:02:56]} 10. Bb5 {[%clk 0:03:03]}  Bb6 {[%clk 0:02:40]} 11. Nf1 {[%clk 0:03:02]}  Ne7 {[%clk 0:02:39]} 12. d4 {[%clk 0:03:00]}  c6 {[%clk 0:02:39]} 13. Bd3 {[%clk 0:03:00]}  Ng6 {[%clk 0:02:38]} 14. Ng3 {[%clk 0:03:00]}  Qd7 {[%clk 0:02:30]} 15. Be3 {[%clk 0:02:56]}  Bc7 {[%clk 0:02:31]} 16. Qc2 {[%clk 0:02:38]}  Nf4 {[%clk 0:02:24]} 17. Bf1 {[%clk 0:02:23]}  g5 {[%clk 0:02:20]} 18. Rad1 {[%clk 0:02:18]}  Qe7 {[%clk 0:02:18]} 19. Nf5 {[%clk 0:02:09]}  Bxf5 {[%clk 0:02:18]} 20. exf5 {[%clk 0:02:10]}  e4 {[%clk 0:02:19]} 21. Nh2 {[%clk 0:01:38]}  d5 {[%clk 0:02:16]} 22. g3 {[%clk 0:01:31]}  N4h5 {[%clk 0:02:14]} 23. Bc1 {[%clk 0:01:23]}  Ng7 {[%clk 0:02:09]} 24. g4 {[%clk 0:01:20]}  Qd6 {[%clk 0:02:07]} 25. f3 {[%clk 0:01:19]}  Qg3+ {[%clk 0:01:53]} 26. Qg2 {[%clk 0:01:17]}  exf3 {[%clk 0:01:54]} 27. Nxf3 {[%clk 0:01:15]}  Ne4 {[%clk 0:01:54]} 28. Ne5 {[%clk 0:00:44]}  Bxe5 {[%clk 0:01:49]} 29. dxe5 {[%clk 0:00:44]}  Qxe5 {[%clk 0:01:49]} 30. Bd3 {[%clk 0:00:44]}  Rfe8 {[%clk 0:01:48]} 31. Bxe4 {[%clk 0:00:36]}  dxe4 {[%clk 0:01:48]} 32. Rd4 {[%clk 0:00:37]}  Rad8 {[%clk 0:01:36]} 33. Rdxe4 {[%clk 0:00:24]}  Qc5+ {[%clk 0:01:35]} 34. Be3 {[%clk 0:00:22]}  Rxe4 {[%clk 0:01:30]} 35. Qxe4 {[%clk 0:00:20]}  Qd5 {[%clk 0:01:30]} 36. Qxd5 {[%clk 0:00:18]}  Rxd5 {[%clk 0:01:31]} 37. Bd4 {[%clk 0:00:15]}  Kf8 {[%clk 0:01:30]} 38. Re5 {[%clk 0:00:08]}  Rxe5 {[%clk 0:01:27]} 39. Bxe5 {[%clk 0:00:09]}  Ne8 {[%clk 0:01:27]} 40. Kf2 {[%clk 0:00:06]}  Ke7 {[%clk 0:01:25]} 41. Ke3 {[%clk 0:00:06]}  f6 {[%clk 0:01:25]} 42. Bb8 {[%clk 0:00:05]}  Kd7 {[%clk 0:01:21]} 43. Kd4 {[%clk 0:00:05]}  b6 {[%clk 0:01:19]} 44. a4 {[%clk 0:00:05]}  Nd6 {[%clk 0:01:11]} 45. Bxd6 {[%clk 0:00:04]}  Kxd6 {[%clk 0:01:11]} 46. b4 {[%clk 0:00:05]}  c5+ {[%clk 0:01:08]} 47. Kc4 {[%clk 0:00:04]}  Kc6 {[%clk 0:01:08]} 48. bxc5 {[%clk 0:00:02]}  bxc5 {[%clk 0:01:09]} 49. Kd3 {[%clk 0:00:02]}  Kd5 {[%clk 0:01:09]} 50. c4+ {[%clk 0:00:03]}  Ke5 {[%clk 0:01:03]} 51. Ke3 {[%clk 0:00:03]}  Kd6 {[%clk 0:01:04]} 52. Kf3 {[%clk 0:00:03]}  Kc7 {[%clk 0:01:02]} 53. Ke4 {[%clk 0:00:02]}  Kd6 {[%clk 0:01:02]} 54. Kd3 {[%clk 0:00:03]}  Ke5 {[%clk 0:01:02]} 55. Ke3 {[%clk 0:00:03]}  Kd6 {[%clk 0:01:03]} 56. Ke4 {[%clk 0:00:04]}  Kc6 {[%clk 0:01:04]} 57. Ke3 {[%clk 0:00:04]}  Kd6 {[%clk 0:01:03]} 1/2-1/2


[Site "https://www.chess.com"]

[Event "Titled Tuesday Blitz June 6 Early 2023"]
[White "Bochnicka, Vladimir"]
[Black "Petrosian, Karlen"]
[WhiteFideId "14943450"]
[BlackFideId "4176146"]
[WhiteElo "2094"]
[BlackElo "2345"]
[Result "0-1"]
[Round "2"]
[TimeControl "180+2"]
[Date "2023.06.06"]
[WhiteClock "0:00:03"]
[BlackClock "0:00:12"]
[Board "99"]

1. e4 {[%clk 0:03:00]}  e6 {[%clk 0:02:58]} 2. d4 {[%clk 0:02:58]}  d5 {[%clk 0:02:58]} 3. Nd2 {[%clk 0:02:59]}  h6 {[%clk 0:02:58]} 4. Ngf3 {[%clk 0:02:56]}  Nf6 {[%clk 0:02:56]} 5. Bd3 {[%clk 0:02:52]}  c5 {[%clk 0:02:57]} 6. c3 {[%clk 0:02:52]}  Nc6 {[%clk 0:02:56]} 7. O-O {[%clk 0:02:50]}  cxd4 {[%clk 0:02:50]} 8. cxd4 {[%clk 0:02:50]}  dxe4 {[%clk 0:02:47]} 9. Nxe4 {[%clk 0:02:47]}  Nb4 {[%clk 0:02:43]} 10. Bb5+ {[%clk 0:02:37]}  Bd7 {[%clk 0:02:42]} 11. Nxf6+ {[%clk 0:02:37]}  gxf6 {[%clk 0:02:42]} 12. Be2 {[%clk 0:02:20]}  Bc6 {[%clk 0:02:38]} 13. a3 {[%clk 0:02:14]}  Nd5 {[%clk 0:02:38]} 14. Bd2 {[%clk 0:02:08]}  Bd6 {[%clk 0:02:37]} 15. b4 {[%clk 0:02:06]}  a6 {[%clk 0:02:37]} 16. Rb1 {[%clk 0:02:03]}  b5 {[%clk 0:02:32]} 17. Rc1 {[%clk 0:02:02]}  Bb7 {[%clk 0:02:31]} 18. Ne1 {[%clk 0:01:56]}  f5 {[%clk 0:02:25]} 19. Nd3 {[%clk 0:01:55]}  Qh4 {[%clk 0:02:21]} 20. Ne5 {[%clk 0:01:35]}  Qxd4 {[%clk 0:01:44]} 21. Nc6 {[%clk 0:01:10]}  Qh4 {[%clk 0:01:29]} 22. g3 {[%clk 0:01:07]}  Qf6 {[%clk 0:01:18]} 23. Bf3 {[%clk 0:00:58]}  O-O {[%clk 0:01:19]} 24. Bxd5 {[%clk 0:00:47]}  exd5 {[%clk 0:01:20]} 25. Bc3 {[%clk 0:00:47]}  Qg6 {[%clk 0:01:16]} 26. Qd4 {[%clk 0:00:43]}  Kh7 {[%clk 0:01:12]} 27. Ne5 {[%clk 0:00:33]}  Qf6 {[%clk 0:01:05]} 28. Rfe1 {[%clk 0:00:28]}  Rac8 {[%clk 0:01:03]} 29. Qd2 {[%clk 0:00:20]}  Rxc3 {[%clk 0:00:52]} 30. Qxc3 {[%clk 0:00:19]}  Rc8 {[%clk 0:00:53]} 31. Qd2 {[%clk 0:00:02]}  Rxc1 {[%clk 0:00:53]} 32. Qxc1 {[%clk 0:00:03]}  Bxe5 {[%clk 0:00:51]} 33. Qc5 {[%clk 0:00:04]}  Kg6 {[%clk 0:00:19]} 34. Qe3 {[%clk 0:00:03]}  Bc3 {[%clk 0:00:17]} 35. Rd1 {[%clk 0:00:02]}  d4 {[%clk 0:00:18]} 36. Qd3 {[%clk 0:00:03]}  Be4 {[%clk 0:00:18]} 37. Qe2 {[%clk 0:00:02]}  Qc6 {[%clk 0:00:18]} 38. h4 {[%clk 0:00:02]}  Bf3 {[%clk 0:00:18]} 39. Qf1 {[%clk 0:00:02]}  Bxd1 {[%clk 0:00:17]} 40. Qxd1 {[%clk 0:00:03]}  Qe4 {[%clk 0:00:16]} 41. h5+ {[%clk 0:00:03]}  Kg7 {[%clk 0:00:15]} 42. Kf1 {[%clk 0:00:02]}  d3 {[%clk 0:00:15]} 43. Kg1 {[%clk 0:00:02]}  Qe1+ {[%clk 0:00:15]} 44. Qxe1 {[%clk 0:00:02]}  Bxe1 {[%clk 0:00:15]} 45. Kf1 {[%clk 0:00:03]}  Bc3 {[%clk 0:00:12]} 0-1


[Site "https://www.chess.com"]

[Event "Titled Tuesday Blitz June 6 Early 2023"]
[White "Yuan, Qingyu"]
[Black "Ansh M Shah"]
[WhiteFideId "8609772"]
[BlackFideId "25033379"]
[WhiteElo "2359"]
[BlackElo "2084"]
[Result "1-0"]
[Round "2"]
[TimeControl "180+2"]
[Date "2023.06.06"]
[WhiteClock "0:00:31"]
[BlackClock "0:00:02"]
[Board "100"]

1. e4 {[%clk 0:02:50]}  c6 {[%clk 0:03:00]} 2. d4 {[%clk 0:02:50]}  d5 {[%clk 0:03:00]} 3. exd5 {[%clk 0:02:51]}  cxd5 {[%clk 0:03:00]} 4. Bd3 {[%clk 0:02:51]}  Nc6 {[%clk 0:02:59]} 5. c3 {[%clk 0:02:51]}  Nf6 {[%clk 0:02:59]} 6. h3 {[%clk 0:02:52]}  e5 {[%clk 0:02:59]} 7. dxe5 {[%clk 0:02:52]}  Nxe5 {[%clk 0:03:00]} 8. Nf3 {[%clk 0:02:53]}  Nxd3+ {[%clk 0:02:59]} 9. Qxd3 {[%clk 0:02:54]}  Bd6 {[%clk 0:03:00]} 10. O-O {[%clk 0:02:54]}  O-O {[%clk 0:03:01]} 11. Be3 {[%clk 0:02:54]}  Be6 {[%clk 0:02:46]} 12. Nbd2 {[%clk 0:02:54]}  Qc7 {[%clk 0:02:47]} 13. Bd4 {[%clk 0:02:47]}  Nd7 {[%clk 0:02:41]} 14. Ng5 {[%clk 0:02:33]}  g6 {[%clk 0:02:41]} 15. Rfe1 {[%clk 0:02:27]}  Bf5 {[%clk 0:02:41]} 16. Qb5 {[%clk 0:02:19]}  Qc6 {[%clk 0:02:17]} 17. Qb3 {[%clk 0:02:18]}  Nc5 {[%clk 0:02:05]} 18. Bxc5 {[%clk 0:02:12]}  Bxc5 {[%clk 0:02:06]} 19. Ngf3 {[%clk 0:02:12]}  Rae8 {[%clk 0:02:01]} 20. Nf1 {[%clk 0:02:06]}  Be4 {[%clk 0:01:56]} 21. Nd4 {[%clk 0:01:59]}  Qf6 {[%clk 0:01:51]} 22. Rad1 {[%clk 0:01:54]}  Qg5 {[%clk 0:01:17]} 23. Ng3 {[%clk 0:01:36]}  Bb6 {[%clk 0:01:15]} 24. Re3 {[%clk 0:01:09]}  f5 {[%clk 0:00:30]} 25. Nxe4 {[%clk 0:01:09]}  fxe4 {[%clk 0:00:27]} 26. Rde1 {[%clk 0:01:05]}  Re5 {[%clk 0:00:14]} 27. Rxe4 {[%clk 0:00:38]}  Rxe4 {[%clk 0:00:06]} 28. Rxe4 {[%clk 0:00:37]}  Qc1+ {[%clk 0:00:04]} 29. Kh2 {[%clk 0:00:38]}  Rxf2 {[%clk 0:00:03]} 30. Qxd5+ {[%clk 0:00:37]}  Kg7 {[%clk 0:00:01]} 31. Qd7+ {[%clk 0:00:33]}  Kh6 {[%clk 0:00:01]} 32. Rh4+ {[%clk 0:00:33]}  Kg5 {[%clk 0:00:02]} 33. Qe7+ {[%clk 0:00:31]} 1-0


[Site "https://www.chess.com"]